bitfinex-derivatives/quotes_ETHF0:USTF0_20260123
["timestamp","ask_amount","ask_price","bid_price","bid_amount"]
[1769162179544,1.13158413,2924.3,2923.0,5.5212261]
[1769162179742,0.00513618,2924.4,2923.0,5.5212261]
[1769162179942,1.131593,2924.3,2923.0,5.5212261]
[1769162180244,0.00513618,2924.4,2923.0,5.5212261]
[1769162180445,1.13153668,2924.3,2923.0,5.5212261]
[1769162180644,0.00513618,2924.4,2923.0,5.5212261]
[1769162180845,1.13164402,2924.3,2923.0,5.5212261]
[1769162181049,0.00513618,2924.4,2923.0,5.5212261]
[1769162181249,0.31932666,2924.3,2923.0,5.5212261]
[1769162181445,0.00513618,2924.4,2923.0,5.5212261]
[1769162181645,0.31931182,2924.3,2923.0,5.5212261]
[1769162181844,0.00513618,2924.4,2923.0,5.5212261]
[1769162182043,0.31927492,2924.3,2923.0,5.5212261]
[1769162182245,0.00513618,2924.4,2923.0,5.5212261]
[1769162182440,0.31926057,2924.3,2923.0,5.5212261]
[1769162182651,3.44263855,2924.3,2923.0,1.84597352]
[1769162183952,0.319252,2924.2,2923.0,1.84597352]
[1769162184253,3.44263855,2924.3,2922.9,1.84943355]
[1769162184550,0.31923492,2924.2,2923.0,1.84597352]
[1769162184853,3.44263855,2924.3,2923.0,1.84597352]
[1769162185040,0.31923338,2924.2,2923.0,1.84597352]
[1769162185352,3.44263855,2924.3,2923.0,1.84597352]
[1769162185559,0.31922249,2924.2,2923.0,1.84597352]
[1769162185747,3.44263855,2924.3,2923.0,1.84597352]
[1769162186146,3.44263855,2924.3,2923.0,5.5212261]
[1769162189762,3.44263855,2924.3,2922.9,1.84943355]
[1769162194361,3.44263855,2924.3,2923.0,1.84597352]
[1769162198861,3.44263855,2924.3,2922.9,3.44023026]
[1769162198862,0.00513618,2924.4,2923.1,5.28274375]
[1769162199066,0.31960856,2924.3,2923.1,5.28274375]
[1769162199271,0.00513618,2924.4,2923.2,3.43677023]
[1769162199472,0.00513618,2924.4,2923.3,0.916782]
[1769162199660,0.00513618,2924.4,2923.4,1.84597352]
[1769162199860,0.00513618,2924.4,2923.5,1.84597352]
[1769162201367,0.00513618,2924.4,2923.6,1.84597352]
[1769162201766,0.00513618,2924.4,2923.5,1.84597352]
[1769162203771,3.76190444,2924.3,2923.4,1.84597352]
[1769162203971,3.44188024,2924.3,2923.4,1.84597352]
[1769162205974,0.32010303,2924.2,2923.4,1.84597352]
[1769162206174,3.44188024,2924.3,2923.4,1.84597352]
[1769162206376,0.32009999,2924.2,2923.4,1.84597352]
[1769162206576,3.44188024,2924.3,2923.4,1.84597352]
[1769162206776,0.32009693,2924.2,2923.4,1.84597352]
[1769162206978,3.44188024,2924.3,2923.4,1.84597352]
[1769162207277,0.320097,2924.2,2923.4,1.84597352]
[1769162207480,3.44188024,2924.3,2923.4,1.84597352]
[1769162207778,0.32009422,2924.2,2923.4,1.84597352]
[1769162207973,3.44188024,2924.3,2923.4,1.84597352]
[1769162208174,0.32009431,2924.2,2923.4,1.84597352]
[1769162208369,0.00513618,2924.4,2923.4,2.76267735]
[1769162208575,0.32009244,2924.3,2923.5,1.84597352]
[1769162208777,0.00513618,2924.4,2923.5,1.84597352]
[1769162209079,0.32009253,2924.3,2923.5,1.84597352]
[1769162209277,0.00513618,2924.4,2923.5,1.84597352]
[1769162209478,0.32008913,2924.3,2923.5,1.84597352]
[1769162209676,0.00513618,2924.4,2923.5,1.84597352]
[1769162209878,0.32008916,2924.3,2923.5,1.84597352]
[1769162210077,0.00513618,2924.4,2923.5,1.84597352]
[1769162210278,0.32008352,2924.3,2923.5,1.84597352]
[1769162210477,0.00513618,2924.4,2923.5,1.84597352]
[1769162210680,0.32008307,2924.3,2923.5,1.84597352]
[1769162210879,0.00513618,2924.4,2923.5,1.84597352]
[1769162211078,0.32008298,2924.3,2923.5,1.84597352]
[1769162211281,0.00513618,2924.4,2923.5,1.84597352]
[1769162211481,0.32007752,2924.3,2923.5,1.84597352]
[1769162211782,0.00513618,2924.4,2923.5,1.84597352]
[1769162211975,0.32007765,2924.3,2923.5,1.84597352]
[1769162212174,0.00513618,2924.4,2923.5,1.84597352]
[1769162212370,0.32007279,2924.3,2923.5,1.84597352]
[1769162212575,0.00513618,2924.4,2923.5,1.84597352]
[1769162212780,0.32007677,2924.3,2923.5,1.84597352]
[1769162212979,0.00513618,2924.4,2923.5,1.84597352]
[1769162213177,0.3200767,2924.3,2923.5,1.84597352]
[1769162213481,0.00513618,2924.4,2923.5,1.84597352]
[1769162213684,0.32007267,2924.3,2923.5,1.84597352]
[1769162213875,0.00513618,2924.4,2923.5,1.84597352]
[1769162214076,0.32007152,2924.3,2923.5,1.84597352]
[1769162214280,0.00513618,2924.4,2923.5,1.84597352]
[1769162214472,0.32007164,2924.3,2923.4,2.76267735]
[1769162214682,0.00513618,2924.4,2923.4,2.76267735]
[1769162214983,0.32007164,2924.3,2923.4,2.76267735]
[1769162215185,0.00513618,2924.4,2923.4,2.76267735]
[1769162215484,0.32007151,2924.3,2923.4,2.76267735]
[1769162215685,0.00513618,2924.4,2923.4,2.76267735]
[1769162215985,0.32007277,2924.3,2923.4,2.76267735]
[1769162216286,0.00513618,2924.4,2923.4,2.76267735]
[1769162216584,0.32007479,2924.3,2923.4,2.76267735]
[1769162216785,0.00513618,2924.4,2923.4,2.76267735]
[1769162216987,0.32007503,2924.3,2923.4,2.76267735]
[1769162217187,0.00513618,2924.4,2923.4,2.76267735]
[1769162217478,0.32007584,2924.3,2923.4,2.76267735]
[1769162217674,0.00513618,2924.4,2923.4,2.76267735]
[1769162217881,0.32007575,2924.3,2923.4,2.76267735]
[1769162218079,0.00513618,2924.4,2923.4,2.76267735]
[1769162218279,0.32007573,2924.3,2923.4,2.76267735]
[1769162218580,0.00513618,2924.4,2923.4,2.76267735]
[1769162218878,0.32007794,2924.3,2923.4,2.76267735]
[1769162219079,0.00513618,2924.4,2923.4,2.76267735]
[1769162219386,0.32007801,2924.3,2923.4,1.84597352]
[1769162219579,3.44701642,2924.4,2923.4,1.84597352]
[1769162219778,0.32008344,2924.3,2923.4,1.84597352]
[1769162219978,3.44701642,2924.4,2923.4,1.84597352]
[1769162220180,0.32008137,2924.3,2923.4,1.84597352]
[1769162220375,3.44701642,2924.4,2923.4,1.84597352]
[1769162220579,3.76195503,2924.3,2923.4,1.84597352]
[1769162220783,0.32008249,2924.2,2923.3,1.84597352]
[1769162220981,3.44188024,2924.3,2923.3,1.84597352]
[1769162221177,0.00513618,2924.4,2923.4,1.84597352]
[1769162221382,0.32009259,2924.3,2923.4,1.84597352]
[1769162221680,0.00513618,2924.4,2923.4,1.84597352]
[1769162221880,0.32009523,2924.3,2923.4,1.84597352]
[1769162222077,0.00513618,2924.4,2923.4,1.84597352]
[1769162222281,0.32009374,2924.3,2923.4,1.84597352]
[1769162222485,0.00513618,2924.4,2923.4,1.84597352]
[1769162222685,0.32010755,2924.3,2923.4,1.84597352]
[1769162222883,0.00513618,2924.4,2923.4,1.84597352]
[1769162223078,0.32010748,2924.3,2923.4,1.84597352]
[1769162223282,0.00513618,2924.4,2923.4,1.84597352]
[1769162223489,0.3201239,2924.3,2923.4,1.84597352]
[1769162223790,0.00513618,2924.4,2923.4,1.84597352]
[1769162224088,0.32012439,2924.3,2923.4,1.84597352]
[1769162224390,0.00513618,2924.4,2923.5,1.84597352]
[1769162224590,0.00513618,2924.4,2923.2,6.99308947]
[1769162224591,0.32014277,2924.3,2923.4,1.84597352]
[1769162224790,0.00513618,2924.4,2923.4,1.84597352]
[1769162225089,0.32013605,2924.3,2923.5,1.84597352]
[1769162225287,0.00513618,2924.4,2923.5,1.84597352]
[1769162225488,0.32015583,2924.3,2923.5,1.84597352]
[1769162225687,0.00513618,2924.4,2923.5,1.84597352]
[1769162225884,0.32015569,2924.3,2923.5,1.84597352]
[1769162226078,0.00513618,2924.4,2923.5,1.84597352]
[1769162226283,0.32009515,2924.3,2923.5,1.84597352]
[1769162226493,0.32010948,2924.2,2923.4,1.84597352]
[1769162226684,4.36666367,2924.3,2923.4,1.84597352]
[1769162226878,0.32010525,2924.2,2923.4,1.84597352]
[1769162227089,4.36666367,2924.3,2923.4,1.84597352]
[1769162227292,0.32010122,2924.2,2923.4,1.84597352]
[1769162227492,4.36666367,2924.3,2923.4,1.84597352]
[1769162227694,0.32012447,2924.2,2923.4,1.84597352]
[1769162227896,4.36666367,2924.3,2923.4,1.84597352]
[1769162228086,0.32006862,2924.2,2923.4,1.84597352]
[1769162228286,4.36666367,2924.3,2923.4,1.84597352]
[1769162228489,0.32004622,2924.2,2923.4,1.84597352]
[1769162228793,4.36666367,2924.3,2923.4,1.84597352]
[1769162228991,0.32004277,2924.2,2923.4,1.84597352]
[1769162229184,0.00513618,2924.4,2923.4,1.84597352]
[1769162229386,1.13461963,2924.3,2923.4,1.84597352]
[1769162229686,0.32005055,2924.2,2923.4,1.84597352]
[1769162229886,0.00513618,2924.4,2923.4,1.84597352]
[1769162230086,1.13465595,2924.3,2923.4,1.84597352]
[1769162230287,0.32005114,2924.2,2923.4,1.84597352]
[1769162230495,0.00513618,2924.4,2923.4,1.84597352]
[1769162230697,1.13468112,2924.3,2923.4,1.84597352]
[1769162230992,0.32005739,2924.2,2923.4,1.84597352]
[1769162231193,0.00513618,2924.4,2923.4,1.84597352]
[1769162231394,1.13468247,2924.3,2923.4,1.84597352]
[1769162231597,0.32007069,2924.2,2923.4,1.84597352]
[1769162231789,0.00513618,2924.4,2923.4,1.84597352]
[1769162231993,1.13472434,2924.3,2923.4,1.84597352]
[1769162232187,0.32007034,2924.2,2923.4,1.84597352]
[1769162232498,0.00513618,2924.4,2923.4,1.84597352]
[1769162232691,1.13473714,2924.3,2923.4,1.84597352]
[1769162232886,0.32007369,2924.2,2923.4,1.84597352]
[1769162233088,0.00513618,2924.4,2923.4,1.84597352]
[1769162233294,1.13473202,2924.3,2923.4,1.84597352]
[1769162233492,0.32007369,2924.2,2923.4,1.84597352]
[1769162233687,0.00513618,2924.4,2923.4,1.84597352]
[1769162233903,1.13476658,2924.3,2923.4,1.84597352]
[1769162234093,0.32008186,2924.2,2923.4,1.84597352]
[1769162234294,0.00513618,2924.4,2923.4,1.84597352]
[1769162234592,1.13482631,2924.3,2923.4,1.84597352]
[1769162234899,0.32007853,2924.2,2923.4,1.84597352]
[1769162235100,0.00513618,2924.4,2923.4,1.84597352]
[1769162235394,1.13482333,2924.3,2923.4,5.39039038]
[1769162235599,0.32007824,2924.2,2923.5,0.91670383]
[1769162235800,0.00513618,2924.4,2923.5,0.91670383]
[1769162235999,1.13481528,2924.3,2923.5,0.91670383]
[1769162236201,0.32007563,2924.2,2923.5,0.91670383]
[1769162236401,0.00513618,2924.4,2923.5,0.91670383]
[1769162236702,1.1348364,2924.3,2923.5,0.91670383]
[1769162236900,0.32007277,2924.2,2923.5,0.91670383]
[1769162237101,0.00513618,2924.4,2923.5,0.91670383]
[1769162237296,1.13483936,2924.3,2923.5,0.91670383]
[1769162237497,0.32007291,2924.2,2923.5,0.91670383]
[1769162237699,0.00513618,2924.4,2923.5,0.91670383]
[1769162237896,1.13482946,2924.3,2923.4,5.39039038]
[1769162238097,0.3200707,2924.2,2923.4,5.39039038]
[1769162238304,0.00513618,2924.4,2923.4,5.39039038]
[1769162238602,1.13482377,2924.3,2923.4,5.39039038]
[1769162238802,0.32006896,2924.2,2923.4,5.39039038]
[1769162239005,0.00513618,2924.4,2923.4,1.84597352]
[1769162239302,1.13482665,2924.3,2923.4,1.84597352]
[1769162239501,0.00513618,2924.4,2923.4,1.84597352]
[1769162239502,0.32006893,2924.2,2923.4,1.84597352]
[1769162239700,0.00513618,2924.4,2923.4,1.84597352]
[1769162239902,1.13482357,2924.3,2923.4,1.84597352]
[1769162240103,0.3200684,2924.2,2923.4,1.84597352]
[1769162240305,0.00513618,2924.4,2923.4,1.84597352]
[1769162240602,1.134828,2924.3,2923.4,1.84597352]
[1769162240800,0.32006954,2924.2,2923.5,6.30709421]
[1769162241000,0.00513618,2924.4,2923.5,6.30709421]
[1769162241200,0.32007409,2924.3,2923.5,6.30709421]
[1769162241399,0.32007409,2924.2,2923.5,6.30709421]
[1769162241601,0.00513618,2924.4,2923.5,6.30709421]
[1769162241798,0.32007656,2924.3,2923.5,6.30709421]
[1769162242002,0.32007614,2924.2,2923.5,6.30709421]
[1769162242208,0.00513618,2924.4,2923.5,6.30709421]
[1769162242407,0.32007872,2924.3,2923.5,6.30709421]
[1769162242609,0.32007872,2924.2,2923.5,6.30709421]
[1769162242811,0.00513618,2924.4,2923.5,6.30709421]
[1769162243104,0.32008019,2924.3,2923.6,3.54441686]
[1769162243298,0.00513618,2924.4,2923.6,3.54441686]
[1769162243502,0.32007943,2924.3,2923.6,3.54441686]
[1769162243697,0.00513618,2924.4,2923.6,3.54441686]
[1769162243903,0.31494333,2924.3,2923.8,4.46112069]
[1769162244105,0.00513618,2924.4,2923.8,3.54441686]
[1769162244307,0.00513618,2924.4,2923.6,1.84597352]
[1769162245011,0.00513618,2924.4,2923.5,1.84597352]
[1769162247020,0.81491229,2924.3,2923.4,1.84597352]
[1769162247221,0.00513618,2924.4,2923.4,1.84597352]
[1769162247419,0.81491359,2924.3,2923.4,1.84597352]
[1769162247617,0.00513618,2924.4,2923.4,1.84597352]
[1769162247813,0.81491928,2924.3,2923.4,1.84597352]
[1769162248019,0.00513618,2924.4,2923.4,1.84597352]
[1769162248215,0.81492205,2924.3,2923.4,1.84597352]
[1769162248416,0.00513618,2924.4,2923.4,1.84597352]
[1769162248618,0.81492811,2924.3,2923.4,1.84597352]
[1769162248918,0.00513618,2924.4,2923.4,1.84597352]
[1769162249220,0.81492714,2924.3,2923.4,1.84597352]
[1769162249519,0.00513618,2924.4,2923.4,1.84597352]
[1769162249720,0.81492365,2924.3,2923.4,1.84597352]
[1769162249922,0.00513618,2924.4,2923.4,1.84597352]
[1769162250122,0.81492336,2924.3,2923.4,1.84597352]
[1769162250320,0.00513618,2924.4,2923.4,1.84597352]
[1769162250519,0.8149267,2924.3,2923.4,1.84597352]
[1769162250723,0.00513618,2924.4,2923.4,1.84597352]
[1769162250922,0.81492689,2924.3,2923.4,1.84597352]
[1769162251119,0.00513618,2924.4,2923.4,1.84597352]
[1769162251422,0.81492894,2924.3,2923.4,1.84597352]
[1769162251721,0.00513618,2924.4,2923.4,1.84597352]
[1769162251922,0.81492974,2924.3,2923.4,1.84597352]
[1769162252122,0.00513618,2924.4,2923.4,1.84597352]
[1769162252323,0.81493531,2924.3,2923.4,1.84597352]
[1769162252522,0.00513618,2924.4,2923.4,1.84597352]
[1769162252724,0.8149344,2924.3,2923.4,1.84597352]
[1769162252926,0.00513618,2924.4,2923.4,5.64361681]
[1769162253118,0.8149336,2924.3,2923.4,5.64361681]
[1769162253317,0.00513618,2924.4,2923.4,5.64361681]
[1769162253513,0.81495036,2924.3,2923.4,5.64361681]
[1769162253714,0.00513618,2924.4,2923.4,5.64361681]
[1769162253924,0.81495045,2924.3,2923.4,5.64361681]
[1769162254122,0.00513618,2924.4,2923.4,5.64361681]
[1769162254324,0.81497119,2924.3,2923.4,5.64361681]
[1769162254518,0.00513618,2924.4,2923.4,5.64361681]
[1769162254717,0.81497119,2924.3,2923.4,5.64361681]
[1769162254917,0.00513618,2924.4,2923.4,5.64361681]
[1769162255120,0.81497232,2924.3,2923.4,5.64361681]
[1769162255424,0.00513618,2924.4,2923.4,5.64361681]
[1769162255624,0.8149845,2924.3,2923.4,5.64361681]
[1769162255828,0.00513618,2924.4,2923.4,5.64361681]
[1769162256026,1.13269896,2924.3,2923.4,5.64361681]
[1769162256320,0.31771327,2924.2,2923.4,5.64361681]
[1769162256525,0.00513618,2924.4,2923.4,5.64361681]
[1769162256721,1.13271961,2924.3,2923.4,5.64361681]
[1769162256922,0.31771911,2924.2,2923.4,5.64361681]
[1769162257122,0.00513618,2924.4,2923.4,5.64361681]
[1769162257321,1.13272558,2924.3,2923.4,5.64361681]
[1769162257522,0.31772155,2924.2,2923.4,5.64361681]
[1769162257724,0.00513618,2924.4,2923.4,5.64361681]
[1769162257923,1.1328466,2924.3,2923.4,5.64361681]
[1769162258125,0.31775495,2924.2,2923.4,5.64361681]
[1769162258327,0.00513618,2924.4,2923.4,5.64361681]
[1769162258628,1.13290059,2924.3,2923.4,5.64361681]
[1769162258827,0.31777005,2924.2,2923.4,5.64361681]
[1769162259027,0.00513618,2924.4,2923.4,5.64361681]
[1769162259220,1.13321358,2924.3,2923.4,5.64361681]
[1769162259421,0.31785644,2924.2,2923.4,5.64361681]
[1769162259725,0.00513618,2924.4,2923.4,5.64361681]
[1769162259926,1.13331994,2924.3,2923.4,5.64361681]
[1769162260125,0.31788767,2924.2,2923.4,5.64361681]
[1769162260327,0.00513618,2924.4,2923.4,5.64361681]
[1769162260527,1.1333261,2924.3,2923.4,5.64361681]
[1769162260826,0.31788935,2924.2,2923.4,5.64361681]
[1769162261026,0.00513618,2924.4,2923.4,5.64361681]
[1769162261227,1.13332804,2924.3,2923.4,5.64361681]
[1769162261428,0.31788892,2924.2,2923.4,5.64361681]
[1769162261627,0.00513618,2924.4,2923.4,5.64361681]
[1769162261829,1.13336091,2924.3,2923.4,5.64361681]
[1769162262029,0.31789882,2924.2,2923.4,5.64361681]
[1769162262230,0.00513618,2924.4,2923.4,5.64361681]
[1769162262524,1.13336527,2924.3,2923.4,5.64361681]
[1769162262727,0.00513618,2924.4,2923.4,5.64361681]
[1769162262728,0.31790004,2924.2,2923.4,5.64361681]
[1769162262930,0.00513618,2924.4,2923.4,5.64361681]
[1769162263130,1.13398218,2924.3,2923.4,5.64361681]
[1769162263331,0.31807303,2924.2,2923.4,5.64361681]
[1769162263632,0.00513618,2924.4,2923.4,5.64361681]
[1769162263821,1.13403228,2924.3,2923.4,5.64361681]
[1769162264024,0.31808713,2924.2,2923.4,5.64361681]
[1769162264224,0.00513618,2924.4,2923.4,5.64361681]
[1769162264425,1.13403488,2924.3,2923.4,3.79764329]
[1769162264628,1.13403488,2924.2,2923.1,1.84597352]
[1769162264827,1.13407252,2924.1,2923.2,4.883]
[1769162265028,0.00513618,2924.4,2923.2,4.883]
[1769162265227,1.13407763,2924.3,2923.2,8.68064329]
[1769162265531,1.13407763,2924.2,2923.2,8.68064329]
[1769162265731,0.81597351,2924.1,2923.2,8.68064329]
[1769162265926,0.00513618,2924.4,2923.2,8.68064329]
[1769162266128,1.13407385,2924.3,2923.2,8.68064329]
[1769162266427,1.13407385,2924.2,2923.2,8.68064329]
[1769162266628,0.8159748,2924.1,2923.2,8.68064329]
[1769162266823,0.00513618,2924.4,2923.2,8.68064329]
[1769162267027,1.13405569,2924.3,2923.2,8.68064329]
[1769162267228,1.13405569,2924.2,2923.2,8.68064329]
[1769162267434,0.81596172,2924.1,2923.2,8.68064329]
[1769162267732,0.00513618,2924.4,2923.3,3.79764329]
[1769162267930,1.13402919,2924.3,2923.3,3.79764329]
[1769162268127,1.13402919,2924.2,2923.3,3.79764329]
[1769162268328,0.00513618,2924.4,2923.3,3.79764329]
[1769162268527,1.13403175,2924.3,2923.1,1.84597352]
[1769162268732,1.13403175,2924.2,2923.0,6.73697352]
[1769162268935,1.13403175,2924.1,2923.0,6.73697352]
[1769162269234,0.81594446,2924.0,2923.0,6.73697352]
[1769162269434,0.00513618,2924.4,2923.0,10.53461681]
[1769162269636,1.13391814,2924.3,2923.0,10.53461681]
[1769162269937,1.13391814,2924.2,2923.0,10.53461681]
[1769162270135,1.13391814,2924.1,2923.0,10.53461681]
[1769162270434,0.00513618,2924.4,2923.0,10.53461681]
[1769162270631,0.81581843,2924.3,2923.0,10.53461681]
[1769162270833,0.81581843,2924.2,2923.1,3.79764329]
[1769162271137,0.81581843,2924.1,2923.1,3.79764329]
[1769162271338,0.00513618,2924.4,2923.1,3.79764329]
[1769162271531,0.81595524,2924.3,2923.1,3.79764329]
[1769162271729,1.13407836,2924.2,2923.1,3.79764329]
[1769162271930,1.13409033,2924.1,2923.1,3.79764329]
[1769162272126,0.00513618,2924.4,2923.1,3.79764329]
[1769162272334,3.70252455,2923.8,2922.9,0.00346003]
[1769162272536,3.70252455,2923.6,2922.3,1.84597352]
[1769162272741,4.83666308,2923.5,2922.1,1.84597352]
[1769162272945,1.13413853,2923.4,2922.1,1.84597352]
[1769162273235,0.81600127,2923.3,2922.2,3.89764329]
[1769162273431,0.17124,2923.7,2922.2,3.89764329]
[1769162273632,1.13219595,2923.6,2922.2,3.89764329]
[1769162273836,1.13219595,2923.5,2922.2,3.9012363]
[1769162274035,1.13219595,2923.4,2922.2,3.9012363]
[1769162274232,0.1743479,2923.7,2922.2,3.9012363]
[1769162274537,1.13145341,2923.6,2922.2,3.9012363]
[1769162274738,0.31736576,2923.5,2922.2,3.9012363]
[1769162275039,0.1743479,2923.7,2922.2,3.9012363]
[1769162275232,1.13116441,2923.6,2922.2,3.9012363]
[1769162275439,0.31739387,2923.5,2922.2,3.9012363]
[1769162275637,0.1743479,2923.7,2922.2,3.9012363]
[1769162275831,1.13101019,2923.6,2922.2,3.9012363]
[1769162276032,0.31723919,2923.5,2922.2,3.9012363]
[1769162276336,0.1743479,2923.7,2922.2,3.9012363]
[1769162276636,1.13056596,2923.6,2922.2,3.9012363]
[1769162276839,0.31711289,2923.5,2922.2,3.9012363]
[1769162277034,0.1743479,2923.7,2922.2,3.9012363]
[1769162277241,0.31710952,2923.6,2922.2,3.9012363]
[1769162277440,0.1743479,2923.7,2922.2,3.9012363]
[1769162277640,0.3169204,2923.6,2922.2,3.9012363]
[1769162277841,0.1743479,2923.7,2922.2,3.9012363]
[1769162278029,0.31690419,2923.6,2922.2,3.9012363]
[1769162278235,0.1743479,2923.7,2922.2,3.9012363]
[1769162278434,0.31681653,2923.6,2922.2,3.9012363]
[1769162278732,0.1743479,2923.7,2922.2,3.9012363]
[1769162279030,0.31681573,2923.6,2922.2,3.9012363]
[1769162279228,0.1743479,2923.7,2922.2,3.9012363]
[1769162279439,0.31674481,2923.6,2922.2,3.9012363]
[1769162279640,0.1743479,2923.7,2922.2,3.9012363]
[1769162279846,0.31674498,2923.6,2922.2,3.9012363]
[1769162280040,0.1743479,2923.7,2922.2,3.9012363]
[1769162280233,0.3167443,2923.6,2922.2,3.9012363]
[1769162280542,0.17633618,2924.4,2922.6,3.79764329]
[1769162280742,1.12937838,2924.3,2922.6,5.64361681]
[1769162280943,0.31677597,2924.2,2922.7,3.79764329]
[1769162281140,0.17633618,2924.4,2922.8,3.79764329]
[1769162281342,0.31690834,2924.3,2922.8,3.79764329]
[1769162281543,0.00090624,2924.3,2922.8,3.79764329]
[1769162282447,0.31691001,2924.2,2922.9,3.6194773]
[1769162282745,0.00090624,2924.3,2922.9,3.6194773]
[1769162283046,0.3169093,2924.2,2922.9,3.6194773]
[1769162283338,0.00090624,2924.3,2922.9,3.6194773]
[1769162283538,0.00090624,2924.3,2922.8,1.84597352]
[1769162283539,4.74929855,2924.2,2922.7,1.84597352]
[1769162283745,3.93638455,2924.1,2922.7,1.84597352]
[1769162284040,3.6194773,2924.1,2922.7,1.84597352]
[1769162284247,3.9363719,2924.0,2922.6,1.84597352]
[1769162284439,3.6194773,2923.8,2922.3,1.84597352]
[1769162284637,1.12965486,2923.7,2922.2,5.37456653]
[1769162284847,0.3168946,2923.6,2922.2,8.99404383]
[1769162285040,3.6194773,2923.8,2922.2,8.99404383]
[1769162285242,3.6194773,2923.8,2922.2,5.56904383]
[1769162285243,4.74908555,2923.7,2922.2,5.56904383]
[1769162285441,0.3168576,2923.6,2922.2,5.56904383]
[1769162285643,3.6194773,2923.7,2922.2,5.56904383]
[1769162285844,0.31681417,2923.6,2922.2,5.56904383]
[1769162286041,3.6194773,2923.7,2922.2,5.56904383]
[1769162286242,0.31681516,2923.6,2922.2,3.72307031]
[1769162286443,0.17124,2923.8,2922.2,3.72307031]
[1769162286745,1.12937905,2923.7,2922.2,3.72307031]
[1769162286933,0.31678545,2923.6,2922.2,3.72307031]
[1769162287134,0.17124,2923.8,2922.2,3.72307031]
[1769162287437,1.12935212,2923.7,2922.2,3.72307031]
[1769162287633,0.31677006,2923.6,2922.2,3.72307031]
[1769162287840,0.17124,2923.8,2922.2,3.72307031]
[1769162288146,1.12931011,2923.7,2922.2,3.72307031]
[1769162288347,0.31676671,2923.6,2922.2,3.72307031]
[1769162288543,1.12915228,2923.5,2922.2,3.72307031]
[1769162288851,0.31672332,2923.4,2922.2,0.10359301]
[1769162289146,3.68847433,2923.5,2922.2,0.10359301]
[1769162289347,0.31669979,2923.4,2922.2,0.10359301]
[1769162289546,3.68847433,2923.5,2922.2,0.10359301]
[1769162289741,0.31670568,2923.4,2922.2,0.10359301]
[1769162289941,3.68847433,2923.5,2922.2,0.10359301]
[1769162290148,0.3166996,2923.4,2922.2,0.10359301]
[1769162290447,3.68847433,2923.5,2922.2,0.10359301]
[1769162290748,0.31666677,2923.4,2922.2,0.10359301]
[1769162291049,4.00514356,2923.3,2922.2,0.10359301]
[1769162291241,3.68847433,2923.3,2922.2,0.10359301]
[1769162293249,3.85974433,2923.3,2922.2,0.10359301]
[1769162293551,4.00507316,2923.2,2922.2,0.10359301]
[1769162293852,3.68847433,2923.2,2922.2,0.10359301]
[1769162295649,0.17127,2923.3,2922.2,0.10359301]
[1769162295953,0.31664547,2923.2,2922.2,0.10359301]
[1769162296142,0.17127,2923.3,2922.2,0.10359301]
[1769162296347,0.31667786,2923.2,2922.2,0.10359301]
[1769162296547,0.17127,2923.3,2922.2,0.10359301]
[1769162296854,0.31667855,2923.2,2922.2,0.10359301]
[1769162297152,0.17127,2923.3,2922.2,0.10359301]
[1769162297353,0.31672676,2923.2,2922.2,0.10359301]
[1769162297554,0.17127,2923.3,2922.2,0.10359301]
[1769162297754,0.31672682,2923.2,2922.2,0.10359301]
[1769162298054,0.17127,2923.3,2922.2,0.10359301]
[1769162298256,0.31672634,2923.2,2922.2,0.10359301]
[1769162298454,0.17127,2923.3,2922.2,0.10359301]
[1769162298754,0.31679941,2923.2,2922.2,0.10359301]
[1769162298954,0.17127,2923.3,2922.2,0.10359301]
[1769162299158,0.31679946,2923.2,2922.2,0.10359301]
[1769162299358,0.17127,2923.3,2922.2,0.10359301]
[1769162299558,0.31686807,2923.2,2922.2,0.10359301]
[1769162299758,0.17127,2923.3,2922.2,0.10359301]
[1769162299956,0.31688506,2923.2,2922.2,0.10359301]
[1769162300154,0.17127,2923.3,2922.2,0.10359301]
[1769162300347,0.31697546,2923.2,2922.2,0.10359301]
[1769162300552,0.17127,2923.3,2922.2,0.10359301]
[1769162300754,0.31700642,2923.2,2922.2,0.10359301]
[1769162300948,0.17127,2923.3,2922.2,0.10359301]
[1769162301154,0.31700696,2923.2,2922.2,0.10359301]
[1769162301457,0.31700696,2923.2,2921.6,3.56818057]
[1769162301458,3.85976433,2923.0,2921.6,3.56818057]
[1769162301654,0.31699658,2922.9,2921.6,3.56818057]
[1769162301854,3.85976433,2923.0,2921.6,3.56818057]
[1769162302057,0.31707233,2922.9,2921.6,5.41415409]
[1769162302262,3.85976433,2923.0,2921.6,5.41415409]
[1769162302458,0.00513618,2922.5,2921.6,3.57167189]
[1769162303259,0.00513618,2922.5,2921.6,0.00349132]
[1769162303454,3.69361051,2922.5,2921.6,0.00349132]
[1769162305160,3.68847433,2922.3,2921.6,0.00349132]
[1769162305353,3.68847433,2922.3,2920.7,1.84597352]
[1769162305553,3.68847433,2922.3,2920.7,5.41415409]
[1769162305753,3.68847433,2922.3,2920.8,3.56818057]
[1769162306053,0.00513618,2922.5,2920.8,3.56818057]
[1769162306054,0.17132,2922.4,2920.8,3.56818057]
[1769162306357,0.17132,2922.4,2920.9,3.56818057]
[1769162315266,0.17132,2922.4,2920.9,5.41415409]
[1769162315568,0.17132,2922.4,2921.0,3.48086178]
[1769162318175,0.17132,2922.4,2921.0,5.3268353]
[1769162318369,0.17132,2922.4,2921.1,3.48086178]
[1769162323374,0.17132,2922.4,2921.2,3.48086178]
[1769162327270,0.31739445,2922.3,2921.2,3.48086178]
[1769162327470,0.17132,2922.4,2921.2,3.48086178]
[1769162328371,0.31746596,2922.3,2921.2,5.3268353]
[1769162328577,0.17132,2922.4,2921.3,3.48086178]
[1769162328874,0.31748054,2922.3,2921.3,4.3986609]
[1769162329075,0.17132,2922.4,2921.3,4.3986609]
[1769162329276,0.31748876,2922.3,2921.3,4.3986609]
[1769162329466,0.17132,2922.4,2921.3,4.3986609]
[1769162329671,0.31760394,2922.3,2921.4,3.48086178]
[1769162329871,0.17132,2922.4,2921.4,3.48086178]
[1769162330071,0.31761714,2922.3,2921.4,3.48086178]
[1769162330279,0.17132,2922.4,2921.4,3.48086178]
[1769162330580,0.31774706,2922.3,2921.6,4.3986609]
[1769162330775,0.00513618,2922.5,2921.7,3.48086178]
[1769162332472,0.81679805,2922.4,2921.7,3.48086178]
[1769162332671,0.00513618,2922.5,2921.7,3.48086178]
[1769162332874,0.8167875,2922.4,2921.5,1.84597352]
[1769162333073,0.00513618,2922.5,2921.5,1.84597352]
[1769162333267,0.81678103,2922.4,2921.5,1.84597352]
[1769162333470,0.00513618,2922.5,2921.5,1.84597352]
[1769162333678,0.81720693,2922.4,2921.5,1.84597352]
[1769162333876,0.00513618,2922.5,2921.5,1.84597352]
[1769162334073,0.81719061,2922.4,2921.5,1.84597352]
[1769162334275,0.00513618,2922.5,2921.5,1.84597352]
[1769162334576,0.8171499,2922.4,2921.5,1.84597352]
[1769162334776,0.00513618,2922.5,2921.5,1.84597352]
[1769162335081,0.81715091,2922.4,2921.5,1.84597352]
[1769162335272,0.00513618,2922.5,2921.5,1.84597352]
[1769162335473,0.81702677,2922.4,2921.5,1.84597352]
[1769162335673,0.00513618,2922.5,2921.5,1.84597352]